Cogmind - Beta 10.1 @@@ ROGUE MODE // 2020.09.19 @ 16:05:12 Player: Tone Result: Destroyed by S-27 Virus with Autogun Performance ------------- Evolutions (6) 3000 Regions Visited (26) 5200 Robots Destroyed (367) 1835 Value Destroyed (16058) 16058 Prototype IDs (45) 900 Alien Tech Used (0) 0 Bonus (5537) 5537 TOTAL SCORE: 32530 Bonus ------- High Alert Combat Kills 3250 Follower Combat Kills 643 Entered Garrisons 400 Used RIF Installer 1000 Met Data Miner 300 Met Imprinter 300 Exposed GOLEM Chamber 500 Friendly Fire -856 Cogmind --------- Core Integrity 0/1150 Matter 81/300 Energy 100/100 System Corruption 8% Temperature Cool (0) Movement Core (50) Location -4/Upper Caves Parts ------- > --- POWER (2) -------- (None) > --- PROPULSION (3) --- Assembled Alloy Leg > --- UTILITY (11) ----- (None) > --- WEAPON (3) ------- (None) > --- INVENTORY (4) ---- Zionite Weapon Casing Deep Network Scanner Ghost Barrier Quantum Router Peak State ------------ > --- POWER ------------ Assembled Flux Generator > --- PROPULSION ------- Heavy Treads Advanced Medium Treads > --- UTILITY ---------- High-capacity Storage Unit High-capacity Storage Unit High-capacity Storage Unit High-capacity Storage Unit High-capacity Storage Unit Assembled Biocell Array Assembled Combat Suite Hardened Medium Armor Plating Assembled Alloy Armor Powered Armor System Mapper > --- WEAPON ----------- HERF Cannon Assembled Focal Cannon Assembled Focal Cannon > --- INVENTORY -------- Antimatter Reactor Antimatter Reactor Advanced Heavy Siege Treads Improved Cooling System High-capacity Storage Unit Energy Well Improved Energy Well Advanced Matter Compressor Advanced Visual Processing Unit Long-range Sensor Array Long-range Terrain Scanner Improved Target Analyzer Advanced Armor Integrity Analyzer Makeshift Transmission Jammer Zionite Weapon Casing Zionite Weapon Casing Zionite Weapon Casing Damper Plating Damper Plating Powered Armor Deep Network Scanner Ghost Barrier Quantum Router Relay Coupler [NC] Relay Coupler [NC] Relay Coupler [NC] Mobile Refinery Mk. CCLXVII GOLEM Unit Long-range Proton Cannon Long-range Proton Cannon Heavy Plasma Cannon Coil Gun Coil Gun Proton Missile Launcher Heavy Rocket Launcher Improved Remote Datajack Improved Plasma Cutter [Rating: 133] Favorites ----------- Power Assembled Flux Generator Engine Improved Deuterium Engine Power Core Nuclear Core Reactor Assembled Flux Generator Propulsion Assembled Alloy Leg Treads Light Treads Leg Assembled Alloy Leg Wheel Armored Wheel Utility High-capacity Storage Unit Device GOLEM Unit Storage High-capacity Storage Unit Processor Improved Signal Interpreter Hackware System Shield Protection Powered Armor Weapon Assembled Focal Cannon Energy Gun Cooled Pulse Rifle Energy Cannon Assembled Focal Cannon Ballistic Gun Heavy Assault Rifle Launcher Proton Missile Launcher Special Weapon Remote Datajack Slashing Weapon Phasing Sabre Build | -11 -10 -10 -10 -9 -8 -7 -7 -7 -7 -7 -7 -7 -6 -6 -6 -6 -6 -5 -5 -5 -5 -5 -4 -4 -4 -4 ------- Run | Scr Mat Min Exi Min Mat Fac Was Fac Low Low Zio Dee Pro Fac Low Low Dat Pro Fac Gar Fac Gar Fac Was Fac Upp Slots Evolved 12 | . . . . . 4 2 . . . . . . . 2 . . . . 2 . . . 2 . . . Power 1 | . . . . . . . . . . . . . . 1 . . . . . . . . . . . . Propulsion 1 | . . . . . . . . . . . . . . . . . . . 1 . . . . . . . Utility 9 | . . . . . 3 2 . . . . . . . 1 . . . . 1 . . . 2 . . . Weapon 1 | . . . . . 1 . . . . . . . . . . . . . . . . . . . . . Parts Attached 494 | 3 21 3 1 . 36 51 24 21 12 6 32 50 4 16 15 23 16 27 16 17 . 20 5 3 71 1 Power 15 | . 1 . . . 1 2 1 2 1 . 1 2 . . . . . . . . . . . . 4 . Engine 5 | . 1 . . . . 2 . 1 . . . 1 . . . . . . . . . . . . . . Core 2 | . . . . . 1 . . . . . . . . . . . . . . . . . . . 1 . Reactor 8 | . . . . . . . 1 1 1 . 1 1 . . . . . . . . . . . . 3 . Propulsion 77 | 2 10 2 . . 21 8 . 1 . . 2 10 . 1 . . 3 . 1 4 . 1 . . 10 1 Treads 37 | 1 5 1 . . 12 . . . . . 1 8 . 1 . . 2 . . . . . . . 5 1 Leg 3 | . . . . . . . . . . . . . . . . . 1 . 1 . . . . . 1 . Wheel 37 | 1 5 1 . . 9 8 . 1 . . 1 2 . . . . . . . 4 . 1 . . 4 . Hover . | . . . . . . . . . . . . . . . . . . . . . . . . . . . Flight . | . . . . . . . . . . . . . . . . . . . . . . . . . . . Utility 267 | 1 4 1 1 . 7 17 14 8 9 4 15 26 4 13 13 19 10 24 15 8 . 14 4 3 33 . Device 89 | . . . . . 2 6 6 2 5 2 8 7 1 5 9 10 1 10 7 . . . 1 . 7 . Storage 69 | 1 4 1 1 . 2 3 . 1 1 . 3 5 . . 2 6 8 10 1 7 . 6 1 1 5 . Processor 6 | . . . . . . 2 . 1 . . 1 . . 1 . . . . . . . . . 1 . . Hackware 12 | . . . . . . 2 . . . . . . . 2 . . . . . . . 3 1 . 4 . Protection 91 | . . . . . 3 4 8 4 3 2 3 14 3 5 2 3 1 4 7 1 . 5 1 1 17 . Artifact . | . . . . . . . . . . . . . . . . . . . . . . . . . . . Weapon 135 | . 6 . . . 7 24 9 10 2 2 14 12 . 2 2 4 3 3 . 5 . 5 1 . 24 . Energy Gun 44 | . 2 . . . 1 13 7 5 1 . 6 9 . . . . . . . . . . . . . . Energy Cannon 24 | . . . . . . 3 2 3 1 1 4 . . . . . . . . 1 . . . . 9 . Ballistic Gun 17 | . 3 . . . 5 3 . 1 . . 2 1 . . . . . . . . . . . . 2 . Ballistic Cannon . | . . . . . . . . . . . . . . . . . . . . . . . . . . . Launcher 28 | . . . . . . 1 . 1 . 1 1 1 . 1 2 3 1 3 . 3 . 2 . . 8 . Special Weapon 14 | . 1 . . . . 1 . . . . . . . . . 1 1 . . 1 . 3 1 . 5 . Impact Weapon . | . . . . . . . . . . . . . . . . . . . . . . . . . . . Slashing Weapon 8 | . . . . . 1 3 . . . . 1 1 . 1 . . 1 . . . . . . . . . Piercing Weapon . | . . . . . . . . . . . . . . . . . . . . . . . . . . . Special Melee Weapon . | . . . . . . . . . . . . . . . . . . . . . . . . . . . Unidentified Prototypes 17 | . . . . . 2 4 . . . . 1 7 . . . . 3 . . . . . . . . . Parts Lost 55 | . 4 . . . 3 2 . . 1 . 8 4 1 2 . 1 . . 1 1 . 1 . . 22 4 Power 7 | . 1 . . . . . . . 1 . 1 . . . . . . . . . . . . . 4 . Propulsion 11 | . . . . . 2 1 . . . . . 1 . . . . . . . . . 1 . . 4 2 Utility 23 | . . . . . 1 . . . . . 2 3 1 1 . 1 . . 1 1 . . . . 10 2 Weapon 14 | . 3 . . . . 1 . . . . 5 . . 1 . . . . . . . . . . 4 . Highest Loss Streak 13 | . 2 . . . 2 1 . . 1 . 6 2 1 1 . 1 . . 1 1 . 1 . . 13 5 Average Slot Usage (%) 85 | . 94 100 93 85 79 88 77 81 91 92 86 78 85 85 85 85 82 85 88 87 88 86 89 83 82 10 Engine 1 | . 11 14 14 14 . 6 4 5 5 . . . . . . . . . . . . . . . . . Reactor 4 | . . . . . . . 2 1 1 7 6 6 7 6 6 6 6 6 5 5 5 4 5 5 4 . Treads 2 | . 17 14 14 14 10 . . . . . . 4 7 . . . . . . . . . . . 5 . Leg 5 | . . . . . . . . . . . . . . 12 13 13 10 13 17 12 . . . . . 5 Wheel 5 | . 10 13 14 14 7 14 7 7 7 7 6 2 . . . . . . . 4 17 16 15 15 5 . Device 7 | . . . . . 2 1 2 2 11 14 11 6 6 8 12 11 9 11 9 6 11 7 13 5 4 4 Storage 27 | . 28 28 21 14 17 23 23 29 30 30 28 22 38 31 26 27 24 26 29 29 29 27 26 29 30 . Processor 2 | . . . . . . . 7 . 7 7 6 . . . 6 6 6 6 5 4 . . . 1 . . Hackware 1 | . . . . . . 9 . . . . . . . 1 . . . . . . . 1 1 . 3 . Protection 4 | . . . . . 6 8 5 9 2 . 2 15 2 2 . . 3 . 1 4 5 7 10 10 12 . Energy Gun 4 | . 18 . . . . 15 16 18 15 15 10 11 . . . . . . . . . . . . . . Energy Cannon 11 | . . . . . . . 5 3 4 6 4 . 23 19 19 19 17 19 17 14 17 13 14 15 9 . Ballistic Gun 2 | . 4 28 28 28 26 5 . . 2 . 2 1 . . . . . . . . . . . . 1 . Naked Turns . | . . . . . . . . . . . . . . . . . . . . . . . . . . . Heaviest Build 282 | 16 57 73 89 89 181 207 175 191 171 171 171 198 197 225 216 219 224 224 225 225 222 230 237 282 282 3 Greatest Support 100 | 20 40 20 10 10 40 32 28 28 28 28 70 70 70 70 60 60 70 60 88 88 36 36 36 36 100 75 Greatest Overweight (x) 18 | 1 5 7 8 8 18 17 6 6 6 6 6 6 2 3 3 3 6 3 2 6 6 6 6 7 11 . Average Overweight (x) 4 | . 1 4 7 8 14 5 5 5 5 5 5 2 2 2 3 3 2 3 2 3 6 5 5 6 3 . Largest Inventory Capacity 60 | 8 18 20 24 24 52 60 28 34 36 36 36 36 36 36 36 36 36 36 36 42 36 36 36 42 52 4 Average Capacity 34 | 6 9 18 21 24 40 39 28 33 35 36 33 26 36 36 36 36 30 36 36 36 36 34 35 39 42 4 Most Carried 44 | 6 13 19 24 24 44 42 28 34 36 35 36 36 36 36 36 36 36 36 36 42 36 36 36 42 44 4 Average Carried 32 | 6 8 14 19 24 37 39 27 32 35 35 32 21 34 35 35 35 27 35 35 34 35 31 34 38 39 4 Final Capacity 44 | 8 18 20 24 24 44 28 28 34 36 36 36 36 36 36 36 36 36 36 36 36 36 36 36 42 4 4 Final Carried 43 | 6 12 19 24 24 43 25 28 34 35 35 31 35 32 36 36 36 36 36 35 36 36 36 36 42 4 4 Class Distribution -------------------- 31% | Hauler-Golem 26% | Hauler-Mutant 10% | Hauler-Tank 10% | Hauler-Skirmisher 4% | Mutant 4% | Hauler-Gunner 4% | Bothacker-Golem Dominant Class ---------------- Mutant | -10/Materials Mutant | -10/Mines Hauler-Mutant | -10/Exiles Hauler-Mutant | -9/Mines Hauler-Tank | -8/Materials Hauler-Tank | -7/Factory Hauler-Gunner | -7/Waste Hauler-Tank | -7/Factory Hauler-Skirmisher | -7/Lower Caves Hauler-Mutant | -7/Lower Caves Hauler-Skirmisher | -7/Zion Hauler-Mutant | -7/Deep Caves Hauler-Mutant | -6/Proximity Caves Hauler-Golem | -6/Factory Hauler-Golem | -6/Lower Caves Hauler-Skirmisher | -6/Lower Caves Hauler-Golem | -6/Data Miner Hauler-Golem | -5/Proximity Caves Hauler-Golem | -5/Factory Hauler-Golem | -5/Garrison Hauler-Golem | -5/Factory Bothacker-Golem | -5/Garrison Bothacker-Mutant | -4/Factory Bothacker-Tank | -4/Waste Hauler-Mutant | -4/Factory Mutant | -4/Upper Caves Resources | -11 -10 -10 -10 -9 -8 -7 -7 -7 -7 -7 -7 -7 -6 -6 -6 -6 -6 -5 -5 -5 -5 -5 -4 -4 -4 -4 ----------- Run | Scr Mat Min Exi Min Mat Fac Was Fac Low Low Zio Dee Pro Fac Low Low Dat Pro Fac Gar Fac Gar Fac Was Fac Upp Matter Collected 7804 | 230 82 86 70 29 938 726 270 311 281 119 509 648 13 259 126 407 180 289 244 284 83 325 . 192 1103 . Remotely . | . . . . . . . . . . . . . . . . . . . . . . . . . . . Salvage Created 19645 | 65 415 43 . . 1118 935 1592 694 245 100 618 1675 170 1097 181 854 30 654 974 1734 399 676 61 1222 4093 . Parts 782 | 2 30 6 . . 55 46 24 24 11 7 53 26 6 63 11 42 5 40 48 70 17 36 1 19 140 . Haulers Intercepted 5 | . 1 . . . 2 2 . . . . . . . . . . . . . . . . . . . . Recyclers Shooed 5 | . . . . . 1 2 . 1 . . . . . . . . . . . . . . . . 1 . Parts Field Recycled . | . . . . . . . . . . . . . . . . . . . . . . . . . . . Retrieved Matter . | . . . . . . . . . . . . . . . . . . . . . . . . . . . Parts Self-Destructed 100 | . . . . . . . . . 8 7 4 . 6 . 6 33 . 34 . . . . . . . 2 Prevented 5 | . . . . . . . . . . . . . . . . 5 . . . . . . . . . . Kills | -11 -10 -10 -10 -9 -8 -7 -7 -7 -7 -7 -7 -7 -6 -6 -6 -6 -6 -5 -5 -5 -5 -5 -4 -4 -4 -4 ------- Run | Scr Mat Min Exi Min Mat Fac Was Fac Low Low Zio Dee Pro Fac Low Low Dat Pro Fac Gar Fac Gar Fac Was Fac Upp Combat Hostiles Destroyed 287 | . 11 3 . . 16 11 6 11 5 4 2 23 3 19 9 16 . 21 15 26 5 18 1 4 58 . Melee 1 | . . . . . . . . . . . . . . . . . . . . . . . . . 1 . Guns 79 | . 11 3 . . 16 9 5 5 4 1 1 14 . . . . . . . . . . . . 10 . Cannons 118 | . . . . . . 1 1 2 1 1 . . 3 16 1 6 . 9 15 21 5 11 1 4 20 . AOE 71 | . . . . . . . . 2 . 2 . 3 . 3 8 9 . 12 . 5 . 7 . . 20 . Classes Destroyed 27 | 1 5 . . . 4 3 1 . 1 . 2 3 . 1 2 . . . . 1 . 3 . . . . Worker 11 | . 1 . . . 2 1 . . . . . . . 2 . . . . 1 . . . . . 4 . Builder 3 | . . . . . . 1 . . . . . . . . . . . . . . . . . . 2 . Tunneler 2 | . . . . . 1 . . . . . . . . . . . . . . . 1 . . . . . Hauler 5 | . 1 . . . 2 2 . . . . . . . . . . . . . . . . . . . . Recycler 9 | 1 . . . . 2 3 . 1 . . . . . 1 . . . . . . . . . . 1 . Minesweeper 2 | . . . . . . . . . . . . . . . 1 1 . . . . . . . . . . Operator 5 | . 1 . . . . 1 . . . . . . . 2 . . . . . . . . . . 1 . Watcher 11 | . . . . . 2 . . 1 . . . . . 2 . . . . 1 1 . . . . 4 . Swarmer 66 | . 5 3 . . 4 1 . . . 3 . . . 7 8 4 . 13 . 5 . 8 . . 5 . Grunt 109 | . 6 . . . 10 2 . 8 3 . . . 2 3 1 8 . 4 6 11 4 8 1 . 32 . Brawler 9 | . . . . . . 1 . 2 . . . . 1 . . 2 . . . . . . . . 3 . Duelist 7 | . . . . . . . . . . . . . . 1 . . . . . 2 . . . . 4 . Protector 3 | . . . . . . . . . . . . . . . . . . . . . . 1 . . 2 . Sentry 23 | . . . . . 2 3 . 1 1 1 . . . 3 . . . . 3 5 1 . . . 3 . Demolisher 1 | . . . . . . . . . . . . . . . . . . . . . . 1 . . . . Specialist 1 | . . . . . . . . . . . . . . . . . . . . 1 . . . . . . Hunter 13 | . . . . . 1 1 . . . . . . . 2 . 1 . 2 . 2 . . . . 4 . Programmer 21 | . . . . . . 3 . . . . . . . 3 . . . 2 6 . . . . . 7 . Behemoth 1 | . . . . . . . . . . . . . . . . . . . . . . 1 . . . . Compactor 10 | . . . . . . . 6 . . . . . . . . . . . . . . . . 4 . . Zionite 26 | . . . . . . . . . . . 26 . . . . . . . . . . . . . . . Z-Light 5 | . . . . . . . . . . . . 5 . . . . . . . . . . . . . . Tinkerer 1 | . . . . . . . . . . . . . . . 1 . . . . . . . . . . . Thief 1 | . . . . . . . . . 1 . . . . . . . . . . . . . . . . . Assembled 6 | . . . . . . . . . . . . 6 . . . . . . . . . . . . . . Golem 12 | . . . . . . . . . . . . 12 . . . . . . . . . . . . . . Mutant 2 | . . . . . . . . . . . 1 . . . . 1 . . . . . . . . . . Best Kill Streak 8 | 1 4 3 . . 6 4 1 4 2 3 8 5 3 4 4 4 1 5 4 5 4 4 1 2 7 . Combat Bots Only 7 | . 3 3 . . 5 2 1 4 2 3 1 5 3 4 4 4 . 5 4 5 3 4 1 2 7 . Max Kills in Single Turn 4 | 1 1 1 . . 2 1 1 2 1 2 2 2 1 2 2 4 1 4 1 4 2 2 1 1 3 . Gunslinging 1 | . . . . . 1 . . . . . . . . . . . . . . . . . . . 1 . Exploded 4 | . . . . . . . . 2 . 2 . 2 . 2 2 4 . 4 . 4 . 2 . . 3 . Melee 1 | . . . . . . . . . . . . . . . . . . . . . . . . . 1 . Uniques/NPCs Destroyed 2 | . . . . . . . . . . . 1 . . . . . 1 . . . . . . . . . Imprinter (-7/Zion) Data Miner (-6/Data Miner) Combat | -11 -10 -10 -10 -9 -8 -7 -7 -7 -7 -7 -7 -7 -6 -6 -6 -6 -6 -5 -5 -5 -5 -5 -4 -4 -4 -4 -------- Run | Scr Mat Min Exi Min Mat Fac Was Fac Low Low Zio Dee Pro Fac Low Low Dat Pro Fac Gar Fac Gar Fac Was Fac Upp Damage Taken 24503 | . 532 67 . . 1349 846 . 410 205 81 2626 1440 93 1392 110 564 . 1260 1097 1773 106 694 167 . 8784 907 Core 2503 | . 70 . . . 150 67 . 28 18 22 347 146 . 146 19 38 . 112 49 114 . 11 17 . 593 556 Absorbed by Shields 134 | . . . . . . . . . . . . . . . . . . . . . . 134 . . . . Reduced by Siege Mode 138 | . . . . . . . . . . . 48 47 . . . . . . . . . . . . 43 . Core Remaining (%) 66 | 100 . . . 72 72 . . . . . . . 10 . . . . 62 . . . 82 . . . . Volleys Fired 1118 | 2 50 3 . . 64 55 70 27 30 16 86 133 16 63 13 29 5 29 62 104 13 53 16 16 163 . Largest 3 | 2 2 2 . . 3 3 3 3 3 3 3 3 3 3 3 3 3 3 3 3 3 3 2 3 3 . Hottest 224 | 80 100 46 . . 69 113 138 138 138 138 224 148 75 75 75 75 75 75 75 81 75 75 50 75 169 . Shots Fired 2145 | 4 88 6 . . 184 147 174 69 60 23 174 150 22 118 26 56 7 65 121 203 28 90 19 48 263 . Gun 1011 | 4 85 6 . . 184 140 132 58 35 7 129 143 . . . . . . . . . . . . 88 . Cannon 991 | . . . . . . 6 42 7 25 15 37 . 22 115 20 45 3 58 121 177 28 76 14 48 132 . Launcher 99 | . . . . . . . . 4 . 1 8 7 . 3 6 11 . 7 . 12 . 6 . . 34 . Special 44 | . 3 . . . . 1 . . . . . . . . . . 4 . . 14 . 8 5 . 9 . Kinetic 443 | . . 6 . . 184 72 . . 5 . 76 12 . . . . . . . . . . . . 88 . Thermal 1383 | 2 68 . . . . 67 174 61 55 22 77 8 22 115 20 45 3 58 121 182 28 76 14 48 117 . Explosive 40 | . . . . . . . . . . 1 . . . 3 6 1 . 7 . 1 . 6 . . 15 . Electromagnetic 171 | 2 20 . . . . 7 . 8 . . 21 49 . . . 10 . . . 20 . . . . 34 . Phasic 81 | . . . . . . . . . . . . 81 . . . . . . . . . . . . . . Robot Hit Streak 46 | 4 11 5 . . 12 17 23 17 9 12 18 37 7 15 9 13 2 10 14 23 6 11 9 22 46 . Robot Miss Streak 6 | . 3 1 . . 3 4 2 2 4 1 3 5 . 4 3 4 3 1 2 6 2 2 1 3 3 . Penetration Max 2 | . . . . . . . . . . . . . . . . . . . . . . . . . 2 . Secondary Targets 13 | . . . . . 2 1 . 1 . . 1 4 . . . . . . . . . . . . 4 . Max Gunslinging Chain 1 | . . . . . 1 1 . 1 . . 1 1 . . . . . . . . . . . . 1 . Shots Hit Robots 1411 | 4 62 3 . . 124 94 138 50 28 6 114 112 6 54 17 34 2 30 75 131 17 60 9 35 206 . Core Hits 727 | 2 22 4 . . 48 35 27 25 12 5 32 113 3 34 15 26 1 26 24 56 12 26 2 9 166 2 Critical Hits 16 | . . . . . 1 . 2 . . . 3 2 . . . . . . . 1 . . . . 7 . Critical Kills 5 | . . . . . 1 . . . . . . 1 . . . . . . . . . . . . 3 . Critical Parts Destroyed 9 | . . . . . . . 2 . . . 1 1 . . . . . . . 1 . . . . 4 . Melee Attacks 85 | . . . . . 1 5 . . . . 62 13 . 1 . . 3 . . . . . . . . . Impact . | . . . . . . . . . . . . . . . . . . . . . . . . . . . Slashing 85 | . . . . . 1 5 . . . . 62 13 . 1 . . 3 . . . . . . . . . Piercing . | . . . . . . . . . . . . . . . . . . . . . . . . . . . Sneak Attacks . | . . . . . . . . . . . . . . . . . . . . . . . . . . . Combat Hostiles . | . . . . . . . . . . . . . . . . . . . . . . . . . . . Follow-up Attacks . | . . . . . . . . . . . . . . . . . . . . . . . . . . . Damage Inflicted 52653 | 52 770 76 . . 1761 1631 2994 1390 648 287 2416 3529 284 3198 1608 2082 33 2447 3530 5909 848 2957 209 1746 12238 10 Guns 14502 | 52 678 68 . . 1761 1510 2164 808 403 94 1549 2876 . . . . . . . . . . . . 2539 . Cannons 26796 | . . . . . . 65 830 136 245 35 612 . 284 2747 770 1184 33 1318 3530 5218 848 2347 209 1746 4639 . Explosions 10968 | . 84 . . . . 56 . 446 . 158 255 653 . 451 838 898 . 1129 . 454 . 610 . . 4936 . Melee . | . . . . . . . . . . . . . . . . . . . . . . . . . . . Ramming 150 | . 8 8 . . . . . . . . . . . . . . . . . . . . . . 124 10 Kinetic 6248 | . . 68 . . 1761 546 . . 20 . 1093 221 . . . . . . . . . . . . 2539 . Thermal 32392 | 24 549 . . . . 988 2994 1096 628 129 942 103 284 2747 770 1299 33 1318 3530 5398 848 2347 209 1746 4410 . Explosive 6633 | . . . . . . . . . . 158 . . . 451 838 262 . 1129 . 352 . 610 . . 2833 . Electromagnetic 5217 | 28 213 . . . . 97 . 294 . . 381 1192 . . . 521 . . . 159 . . . . 2332 . Impact . | . . . . . . . . . . . . . . . . . . . . . . . . . . . Slashing . | . . . . . . . . . . . . . . . . . . . . . . . . . . . Piercing . | . . . . . . . . . . . . . . . . . . . . . . . . . . . Phasic 2013 | . . . . . . . . . . . . 2013 . . . . . . . . . . . . . . Highest Corruption 12 | . . . . . . 4 12 12 12 12 12 2 2 1 1 1 1 1 3 3 3 3 . . 7 8 Average Corruption 3 | . . . . . . 3 11 12 12 12 12 2 2 1 1 1 1 1 2 3 3 3 . . 2 8 Corruption Purged . | . . . . . . . . . . . . . . . . . . . . . . . . . . . Effects 459 | . . . . . . 38 52 32 63 51 4 20 6 . 8 12 5 3 11 83 5 38 . . 26 2 Message Errors 102 | . . . . . . 8 10 4 7 10 . 7 2 . 4 1 3 . 3 24 1 14 . . 4 . Matter Fused 81 | . . . . . . 9 6 5 14 8 . . . . . . . . 2 16 2 13 . . 5 1 Heat Flow Errors 48 | . . . . . . 5 3 2 8 4 . 5 2 . . . . . . 12 . 2 . . 5 . Energy Discharges 56 | . . . . . . 5 6 1 3 7 2 2 1 . 1 5 2 2 2 10 1 2 . . 4 . Parts Rejected 2 | . . . . . . . 1 1 . . . . . . . . . . . . . . . . . . Data Loss (minor) 49 | . . . . . . 4 2 3 5 5 1 4 . . 2 3 . 1 1 12 . 4 . . 1 1 Data Loss (major) 5 | . . . . . . . 1 . 1 3 . . . . . . . . . . . . . . . . Misfires 6 | . . . . . . . 1 2 1 2 . . . . . . . . . . . . . . . . Alerts 4 | . . . . . . . 2 1 . 1 . . . . . . . . . . . . . . . . Misdirections 25 | . . . . . . . 1 3 11 9 1 . . . . . . . . . . . . . . . Targeting Errors 67 | . . . . . . 3 17 7 11 2 . 2 1 . 1 1 . . 3 9 1 3 . . 6 . Weapon Failures 14 | . . . . . . 4 2 3 2 . . . . . . 2 . . . . . . . . 1 . Overload Shots . | . . . . . . . . . . . . . . . . . . . . . . . . . . . Overflow Damage 2058 | . 38 . . . . . . 39 . 1 73 4 . 271 206 102 . 53 321 288 112 81 3 . 466 . Projectiles 1681 | . . . . . . . . . . . 66 . . 237 115 97 . 32 321 288 112 58 3 . 352 . Explosions 377 | . 38 . . . . . . 39 . 1 7 4 . 34 91 5 . 21 . . . 23 . . 114 . Melee . | . . . . . . . . . . . . . . . . . . . . . . . . . . . Knockbacks . | . . . . . . . . . . . . . . . . . . . . . . . . . . . Impact . | . . . . . . . . . . . . . . . . . . . . . . . . . . . Kinetic . | . . . . . . . . . . . . . . . . . . . . . . . . . . . Secondary . | . . . . . . . . . . . . . . . . . . . . . . . . . . . Self-Inflicted Damage 573 | . 27 . . . . . . . . 5 60 . . 63 . . . 88 . 39 . 52 . . 235 4 Shots 19 | . 1 . . . . . . . . 1 2 . . 1 . . . 2 . 2 . 1 . . 9 . Rammed 16 | . 2 3 . . . . . . . . . . . . . . . . . . . . . . 9 2 Targets Rammed 17 | . 3 3 . . . . . . . . . . . . . . . . . . . . . . 9 2 Kicked . | . . . . . . . . . . . . . . . . . . . . . . . . . . . Crushed 1 | . 1 . . . . . . . . . . . . . . . . . . . . . . . . . Highest Temperature 346 | 36 264 . . . 150 310 324 324 346 171 111 217 242 14 5 36 2 60 40 248 2 147 . 45 225 . Average Temperature 74 | 20 64 . . . 41 91 115 130 110 79 38 70 78 4 3 14 1 16 10 64 2 48 . 19 57 . Received Heat Transfer 4420 | . 144 . . . 630 156 . 234 111 . 126 405 45 69 36 132 . 234 288 396 36 94 54 . 1230 . Effects 7 | . . . . . . . 4 . 2 . . 1 . . . . . . . . . . . . . . Energy Bleed 1 | . . . . . . . . . . . . 1 . . . . . . . . . . . . . . Interference 6 | . . . . . . . 4 . 2 . . . . . . . . . . . . . . . . . Siege Activations 7 | . . . . . . . . . . . 1 2 1 . . . 2 . . . . . . . 1 . Total Turns 112 | . . . . . . . . . . . 29 35 8 . . . 5 . . . . . . . 35 . Longest Duration 35 | . . . . . . . . . . . 29 25 8 . . . 4 . . . . . . . 35 . Robots Corrupted 15 | . . . . . . . . 1 . . 1 6 . . . 1 . . . . . . . . 6 . Combat Hostiles 15 | . . . . . . . . 1 . . 1 6 . . . 1 . . . . . . . . 6 . Parts Fried 46 | . . . . . . . . 1 . . 3 17 . . . 4 . . . 2 . . . . 19 . Impact Corruptions . | . . . . . . . . . . . . . . . . . . . . . . . . . . . Robots Melted 2 | . . . . . . 1 . 1 . . . . . . . . . . . . . . . . . . Combat Hostiles 2 | . . . . . . 1 . 1 . . . . . . . . . . . . . . . . . . Parts Melted 21 | . . . . . . 6 . 3 1 . . . . 2 1 . . 1 . 3 . 1 . . 3 . Heat Transferred 25728 | 50 1125 . . . . 1678 4995 1865 999 222 1028 100 150 1450 425 725 25 675 1900 3132 475 1209 125 975 2400 . Parts Sabotaged 1 | . . . . . . . . . . . . . . . . . . . . . . . . . 1 . Parts Stolen 1 | . . . . . . . . . 1 . . . . . . . . . . . . . . . . . Parts Stripped . | . . . . . . . . . . . . . . . . . . . . . . . . . . . Power Chain Reactions 14 | . 2 . . . . 1 . 2 . . 1 2 . . . 2 . . . 1 . . . . 3 . Missiles Intercepted . | . . . . . . . . . . . . . . . . . . . . . . . . . . . Alert | -11 -10 -10 -10 -9 -8 -7 -7 -7 -7 -7 -7 -7 -6 -6 -6 -6 -6 -5 -5 -5 -5 -5 -4 -4 -4 -4 ------- Run | Scr Mat Min Exi Min Mat Fac Was Fac Low Low Zio Dee Pro Fac Low Low Dat Pro Fac Gar Fac Gar Fac Was Fac Upp Peak Influence 1675 | 5 349 194 . . 335 231 16 497 . . . . . 909 . . . . 281 1186 808 1378 806 309 1675 . Initial 723 | . 3 109 . . . 103 7 4 . . . . . . . . . . 32 77 622 565 723 282 62 . Average 529 | 3 207 57 . . 135 123 8 211 . . . . . 409 . . . . 129 878 717 1229 747 248 785 . Maximum Alert Level 5 | . 1 . . . 1 1 . 2 . . . . . 3 . . . . 1 4 3 4 3 1 5 . Low Security (%) 37 | 100 36 100 . 100 68 85 100 52 . . . . . 31 . . . . 82 1 . . . 21 23 . Level 1 15 | . 63 . . . 31 14 . 33 . . . . . 32 . . . . 17 5 . . . 78 1 . Level 2 5 | . . . . . . . . 14 . . . . . . . . . . . 19 56 3 . . . . Level 3 21 | . . . . . . . . . . . . . . 35 . . . . . 31 43 21 100 . 53 . Level 4 18 | . . . . . . . . . . . . . . . . . . . . 42 . 74 . . 12 . Level 5 . | . . . . . . . . . . . . . . . . . . . . . . . . . 8 . High Security . | . . . . . . . . . . . . . . . . . . . . . . . . . . . Max Security . | . . . . . . . . . . . . . . . . . . . . . . . . . . . Squads Dispatched 42 | . 3 . . . 1 5 . 1 . . . . . 7 . . . . 5 . 1 . 1 . 18 . Investigation 11 | . 2 . . . . 2 . 1 . . . . . 1 . . . . 1 . 1 . 1 . 2 . Extermination 10 | . . . . . . 2 . . . . . . . 3 . . . . 3 . . . . . 2 . Reinforcement 13 | . 1 . . . 1 1 . . . . . . . 3 . . . . 1 . . . . . 6 . Assault 7 | . . . . . . . . . . . . . . . . . . . . . . . . . 7 . Garrison 1 | . . . . . . . . . . . . . . . . . . . . . . . . . 1 . Intercept . | . . . . . . . . . . . . . . . . . . . . . . . . . . . Construction Impeded 6 | . . . . . . . . . . . . . . 1 . . . . 1 . . . . . 4 . Haulers Reinforced 2 | . . . . . . 1 . . . . . . . . . . . . . . . . . . 1 . Stealth | -11 -10 -10 -10 -9 -8 -7 -7 -7 -7 -7 -7 -7 -6 -6 -6 -6 -6 -5 -5 -5 -5 -5 -4 -4 -4 -4 --------- Run | Scr Mat Min Exi Min Mat Fac Was Fac Low Low Zio Dee Pro Fac Low Low Dat Pro Fac Gar Fac Gar Fac Was Fac Upp Distress Signals 9 | . . . . . 1 1 . . . . . . . 1 1 . . . 1 . . . . . 4 . Communications Jammed . | . . . . . . . . . . . . . . . . . . . . . . . . . . . Distress Signals . | . . . . . . . . . . . . . . . . . . . . . . . . . . . Times Spotted 455 | . 24 2 . . 27 16 6 11 11 4 36 24 3 27 6 21 . 22 17 39 5 25 3 5 107 14 Peak Tracking Total 16 | . 6 3 . . 5 3 3 4 3 3 7 6 3 6 3 4 . 5 4 5 3 4 3 3 16 9 Tactical Retreats 44 | . 5 . . . 1 1 . . 1 . 9 1 . 1 1 1 . . 1 11 1 2 . . 5 3 Traps | -11 -10 -10 -10 -9 -8 -7 -7 -7 -7 -7 -7 -7 -6 -6 -6 -6 -6 -5 -5 -5 -5 -5 -4 -4 -4 -4 ------- Run | Scr Mat Min Exi Min Mat Fac Was Fac Low Low Zio Dee Pro Fac Low Low Dat Pro Fac Gar Fac Gar Fac Was Fac Upp Traps Triggered 21 | . . 1 . . . 5 . . . . . . . . . . . . 1 4 . 6 1 . 3 . Indirectly 1 | . . . . . . . . . . . . . . . . . . . . . . . . . 1 . Trap Hack Attempts . | . . . . . . . . . . . . . . . . . . . . . . . . . . . Triggered . | . . . . . . . . . . . . . . . . . . . . . . . . . . . Disarmed . | . . . . . . . . . . . . . . . . . . . . . . . . . . . Reprogrammed . | . . . . . . . . . . . . . . . . . . . . . . . . . . . Reused 2 | . . . . . . . . . . . . 1 . . . . 1 . . . . . . . . . Traps Extracted . | . . . . . . . . . . . . . . . . . . . . . . . . . . . Installed 4 | . . . . . . . . . . . . 1 . . . . 3 . . . . . . . . . Triggered . | . . . . . . . . . . . . . . . . . . . . . . . . . . . Machines | -11 -10 -10 -10 -9 -8 -7 -7 -7 -7 -7 -7 -7 -6 -6 -6 -6 -6 -5 -5 -5 -5 -5 -4 -4 -4 -4 ---------- Run | Scr Mat Min Exi Min Mat Fac Was Fac Low Low Zio Dee Pro Fac Low Low Dat Pro Fac Gar Fac Gar Fac Was Fac Upp Machines Disabled 43 | . 2 . . . 1 . . . . . 1 2 . 8 . 1 1 . 1 7 . 8 . . 11 . Max in Single Turn 4 | . 1 . . . 1 . . . . . 1 1 . 4 . 1 1 . 1 1 . 1 . . 1 . Garrison Access 7 | . . . . . . 1 . 1 . . . . . 2 . . . . . . . . 1 . 2 . Garrison Relay 8 | . . . . . . . . . . . . . . . . . . . . 4 . 4 . . . . Machines Sabotaged . | . . . . . . . . . . . . . . . . . . . . . . . . . . . Garrisons Compromised . | . . . . . . . . . . . . . . . . . . . . . . . . . . . Overloaded Fab Kills . | . . . . . . . . . . . . . . . . . . . . . . . . . . . Fab Network Shutdowns 1 | . . . . . . . . . . . . . . 1 . . . . . . . . . . . . Hacking | -11 -10 -10 -10 -9 -8 -7 -7 -7 -7 -7 -7 -7 -6 -6 -6 -6 -6 -5 -5 -5 -5 -5 -4 -4 -4 -4 --------- Run | Scr Mat Min Exi Min Mat Fac Was Fac Low Low Zio Dee Pro Fac Low Low Dat Pro Fac Gar Fac Gar Fac Was Fac Upp Machines Accessed 57 | . 6 2 1 . 5 7 . 2 . . . . . 15 1 . 3 . 4 . 2 . 2 . 7 . Terminals 26 | . 4 . . . 5 4 . 1 . . . . . 7 . . . . 3 . . . . . 2 . Fabricators 6 | . . . . . . 1 . . . . . . . 4 . . . . . . . . . . 1 . Repair Stations 4 | . . . . . . 1 . . . . . . . 1 . . . . . . . . . . 2 . Recycling Units 2 | . 2 . . . . . . . . . . . . . . . . . . . . . . . . . Scanalyzers 4 | . . . . . . . . . . . . . . 1 . . . . . . 1 . 1 . 1 . Garrison Access 8 | . . . . . . 1 . 1 . . . . . 2 . . . . 1 . 1 . 1 . 1 . Total Hacks 174 | . 26 2 1 . 14 22 . 4 . . . . . 42 1 . 23 . 8 . 4 . 5 . 22 . Successful 112 | . 17 2 1 . 3 9 . 2 . . . . . 26 1 . 23 . 4 . 4 . 3 . 17 . Failed 61 | . 9 . . . 11 13 . 2 . . . . . 15 . . . . 4 . . . 2 . 5 . Catastrophic 6 | . . . . . 1 2 . . . . . . . 1 . . . . 2 . . . . . . . Database Lockouts 1 | . . . . . . . . . . . . . . 1 . . . . . . . . . . . . Manual 80 | . 21 . . . 6 13 . 3 . . 3 . . 23 . . . . 5 . 1 . . . 5 . Terminals 89 | . 23 . . . 14 14 . 2 . . . . . 24 . . . . 7 . . . . . 5 . Fabricators 13 | . . . . . . 2 . . . . . . . 10 . . . . . . . . . . 1 . Repair Stations 18 | . . . . . . 4 . . . . . . . 2 . . . . . . . . . . 12 . Recycling Units 3 | . 3 . . . . . . . . . . . . . . . . . . . . . . . . . Scanalyzers 10 | . . . . . . . . . . . . . . 3 . . . . . . 1 . 3 . 3 . Garrison Access 14 | . . . . . . 2 . 2 . . . . . 3 . . . . 1 . 3 . 2 . 1 . Terminal Hacks 44 | . 7 2 1 . . 2 . 1 . . . . . 6 1 . 23 . . . . . . . 1 . Record 7 | . . . 1 . . . . . . . . . . . . . 6 . . . . . . . . . Part Schematic 10 | . . . . . . . . . . . . . . 2 . . 8 . . . . . . . . . Robot Schematic 6 | . . . . . . . . . . . . . . . . . 6 . . . . . . . . . Robot Analysis 3 | . 3 . . . . . . . . . . . . . . . . . . . . . . . . . Prototype ID Bank 4 | . 1 . . . . . . . . . . . . . . . 3 . . . . . . . . . Open Door 3 | . . 2 . . . . . . . . . . . . 1 . . . . . . . . . . . Branch Access Points 3 | . 1 . . . . . . . . . . . . 1 . . . . . . . . . . 1 . Machine Index 1 | . . . . . . . . . . . . . . 1 . . . . . . . . . . . . Unreport Threat 2 | . . . . . . 2 . . . . . . . . . . . . . . . . . . . . Locate Traps 2 | . 1 . . . . . . 1 . . . . . . . . . . . . . . . . . . Recall Extermination 1 | . . . . . . . . . . . . . . 1 . . . . . . . . . . . . Hauler Manifests 1 | . . . . . . . . . . . . . . 1 . . . . . . . . . . . . Zone Layout 1 | . 1 . . . . . . . . . . . . . . . . . . . . . . . . . Fabricator Hacks 6 | . . . . . . 1 . . . . . . . 5 . . . . . . . . . . . . Load Schematic 3 | . . . . . . . . . . . . . . 3 . . . . . . . . . . . . Build 3 | . . . . . . 1 . . . . . . . 2 . . . . . . . . . . . . Repair Station Hacks 18 | . . . . . . 4 . . . . . . . 2 . . . . . . . . . . 12 . Scan Component 9 | . . . . . . 2 . . . . . . . 1 . . . . . . . . . . 6 . Repair 9 | . . . . . . 2 . . . . . . . 1 . . . . . . . . . . 6 . Recycling Unit Hacks . | . . . . . . . . . . . . . . . . . . . . . . . . . . . Scanalyzer 7 | . . . . . . . . . . . . . . 2 . . . . . . 1 . 1 . 3 . Insert Component 4 | . . . . . . . . . . . . . . 1 . . . . . . 1 . 1 . 1 . Analyze 3 | . . . . . . . . . . . . . . 1 . . . . . . . . . . 2 . Garrison Access Hacks 8 | . . . . . . . . . . . . . . 2 . . . . 1 . 2 . 2 . 1 . Unlock Access 2 | . . . . . . . . . . . . . . . . . . . 1 . 1 . . . . . Seal Access 4 | . . . . . . . . . . . . . . 2 . . . . . . . . 1 . 1 . Coupler Status 2 | . . . . . . . . . . . . . . . . . . . . . 1 . 1 . . . Unauthorized Hacks 29 | . 10 . . . 3 2 . 1 . . . . . 9 . . . . 3 . 1 . . . . . Terminals 23 | . 8 . . . 3 1 . . . . . . . 8 . . . . 3 . . . . . . . Track 12 | . 4 . . . 2 . . . . . . . . 4 . . . . 2 . . . . . . . Assimilate 3 | . 1 . . . . 1 . . . . . . . 1 . . . . . . . . . . . . Botnet 6 | . 2 . . . 1 . . . . . . . . 2 . . . . 1 . . . . . . . Operators 2 | . 1 . . . . . . . . . . . . 1 . . . . . . . . . . . . Fabricators 1 | . . . . . . . . . . . . . . 1 . . . . . . . . . . . . Haulers 1 | . . . . . . . . . . . . . . 1 . . . . . . . . . . . . Repair Stations . | . . . . . . . . . . . . . . . . . . . . . . . . . . . Recycling Units 2 | . 2 . . . . . . . . . . . . . . . . . . . . . . . . . Tunnel 2 | . 2 . . . . . . . . . . . . . . . . . . . . . . . . . Scanalyzers . | . . . . . . . . . . . . . . . . . . . . . . . . . . . Garrison Access 3 | . . . . . . 1 . 1 . . . . . . . . . . . . 1 . . . . . Jam 2 | . . . . . . 1 . 1 . . . . . . . . . . . . . . . . . . Eject 1 | . . . . . . . . . . . . . . . . . . . . . 1 . . . . . Data Cores Recovered 2 | . . . . . . 1 . . . . . . . 1 . . . . . . . . . . . . Used . | . . . . . . . . . . . . . . . . . . . . . . . . . . . Hacking Detections 38 | . 5 . . . 5 7 . 1 . . . . . 11 . . . . 3 . . . 1 . 5 . Full Trace Events 7 | . . . . . 1 1 . . . . . . . 1 . . . . 1 . . . 1 . 2 . Feedback Events . | . . . . . . . . . . . . . . . . . . . . . . . . . . . Feedback Blocked . | . . . . . . . . . . . . . . . . . . . . . . . . . . . Robot Schematics Acquired 6 | . . . . . . . . . . . . . . . . . 6 . . . . . . . . . Robots Built . | . . . . . . . . . . . . . . . . . . . . . . . . . . . Matter . | . . . . . . . . . . . . . . . . . . . . . . . . . . . Time . | . . . . . . . . . . . . . . . . . . . . . . . . . . . Total Robot Build Rating . | . . . . . . . . . . . . . . . . . . . . . . . . . . . Part Schematics Acquired 11 | . . . . . . . . . . . . . . 3 . . 8 . . . . . . . . . Parts Built 6 | . . . . . . 2 . . . . . . . 4 . . . . . . . . . . . . Matter 548 | . . . . . . 212 . . . . . . . 336 . . . . . . . . . . . . Time 274 | . . . . . . 106 . . . . . . . 168 . . . . . . . . . . . . Total Part Build Rating 28 | . . . . . . 12 . . . . . . . 16 . . . . . . . . . . . . Parts Repaired 9 | . . . . . . 2 . . . . . . . 1 . . . . . . . . . . 6 . Time 367 | . . . . . . 70 . . . . . . . 28 . . . . . . . . . . 269 . Parts Recycled . | . . . . . . . . . . . . . . . . . . . . . . . . . . . Recycled Matter . | . . . . . . . . . . . . . . . . . . . . . . . . . . . Retrieved Matter . | . . . . . . . . . . . . . . . . . . . . . . . . . . . Retrieved Components . | . . . . . . . . . . . . . . . . . . . . . . . . . . . Parts Scanalyzed 3 | . . . . . . . . . . . . . . 1 . . . . . . . . 1 . 1 . Part Schematics Acquired 1 | . . . . . . . . . . . . . . 1 . . . . . . . . . . . . Parts Damaged . | . . . . . . . . . . . . . . . . . . . . . . . . . . . Bothacking | -11 -10 -10 -10 -9 -8 -7 -7 -7 -7 -7 -7 -7 -6 -6 -6 -6 -6 -5 -5 -5 -5 -5 -4 -4 -4 -4 ------------ Run | Scr Mat Min Exi Min Mat Fac Was Fac Low Low Zio Dee Pro Fac Low Low Dat Pro Fac Gar Fac Gar Fac Was Fac Upp Used RIF Installer 2 | . . . . . . . . . . . . . . . . . . . . 1 . 1 . . . . Structural Interface 1 | . . . . . . . . . . . . . . . . . . . . . . 1 . . . . Robots Hacked 16 | . . . . . . 1 . . . . . . . . . . 1 . . . . 6 2 . 6 . Non-combat 4 | . . . . . . 1 . . . . . . . . . . . . . . . . . . 3 . Combat 12 | . . . . . . . . . . . . . . . . . 1 . . . . 6 2 . 3 . Robot Hacks Applied 17 | . . . . . . 1 . . . . . . . . . . 1 . . . . 6 3 . 6 . parse_system 2 | . . . . . . . . . . . . . . . . . 1 . . . . . 1 . . . find_chute 1 | . . . . . . 1 . . . . . . . . . . . . . . . . . . . . map_route 2 | . . . . . . . . . . . . . . . . . . . . . . . . . 2 . amplify_resonance 1 | . . . . . . . . . . . . . . . . . . . . . . . . . 1 . overwrite_iff 6 | . . . . . . . . . . . . . . . . . . . . . . 5 1 . . . formatsys_high 5 | . . . . . . . . . . . . . . . . . . . . . . 1 1 . 3 . Relay Couplers Released 34 | . . . . . . . . . . . . . . . . . . . . 13 4 16 . . 1 . Ejected 4 | . . . . . . . . . . . . . . . . . . . . . 4 . . . . . Machine Destruction 30 | . . . . . . . . . . . . . . . . . . . . 13 . 16 . . 1 . Attached 7 | . . . . . . . . . . . . . . . . . . . . . . 3 1 . 3 . Robots Rewired 3 | . . . . . . . . . . . . . . . . 3 . . . . . . . . . . Allies Hacked 1 | . . . . . . . . . . . . . . . . . . . . . . . . . 1 . Hacks Repelled . | . . . . . . . . . . . . . . . . . . . . . . . . . . . Allies | -11 -10 -10 -10 -9 -8 -7 -7 -7 -7 -7 -7 -7 -6 -6 -6 -6 -6 -5 -5 -5 -5 -5 -4 -4 -4 -4 -------- Run | Scr Mat Min Exi Min Mat Fac Was Fac Low Low Zio Dee Pro Fac Low Low Dat Pro Fac Gar Fac Gar Fac Was Fac Upp Total Allies 21 | . 1 4 . . . 1 . . . . . . . 1 . 3 . . . . . 6 2 . 3 . Largest Group 4 | . 1 4 4 3 3 1 . . . . . . . 1 . 3 . . . . . 1 3 2 3 . Highest-Rated Group 154 | . 10 71 71 40 40 10 . . . . . . . 26 . 93 . . . . . 49 143 96 154 . Highest-Rated Ally 56 | . 10 31 31 16 16 10 . . . . . . . 26 . 31 . . . . . 49 49 49 56 . Total Orders 8 | . . . . . . . . . . . 3 . . 1 . . . . . . . 4 . . . . STAY 3 | . . . . . . . . . . . . . . 1 . . . . . . . 2 . . . . FOLLOW 2 | . . . . . . . . . . . . . . . . . . . . . . 2 . . . . RETURN 3 | . . . . . . . . . . . 3 . . . . . . . . . . . . . . . Ally Attacks 149 | . . . . . 35 . . . . . 12 . . . . 13 . . . . . 24 5 34 26 . Total Damage 4253 | . . . . . 301 . . . . . . . . . . 235 . . . . . 461 101 1207 1948 . Kills 21 | . . . . . 6 . . . . . . . . . . 1 . . . . . 1 1 1 11 . Allies Corrupted 3 | . . . . . . . . . . . . . . . . . . . . . . . . 2 1 . Allies Melted . | . . . . . . . . . . . . . . . . . . . . . . . . . . . Intel | -11 -10 -10 -10 -9 -8 -7 -7 -7 -7 -7 -7 -7 -6 -6 -6 -6 -6 -5 -5 -5 -5 -5 -4 -4 -4 -4 ------- Run | Scr Mat Min Exi Min Mat Fac Was Fac Low Low Zio Dee Pro Fac Low Low Dat Pro Fac Gar Fac Gar Fac Was Fac Upp Robot Analysis Total 3 | . 3 . . . . . . . . . . . . . . . . . . . . . . . . . Derelict Logs Recovered 11 | . . 1 . . . . . . 1 1 3 . 1 . 1 1 . 1 . . . . . . . 1 Drone Launches 15 | . . . . . . . . . . . 15 . . . . . . . . . . . . . . . Drone Recoveries 3 | . . . . . . . . . . . 3 . . . . . . . . . . . . . . . Exploration | -11 -10 -10 -10 -9 -8 -7 -7 -7 -7 -7 -7 -7 -6 -6 -6 -6 -6 -5 -5 -5 -5 -5 -4 -4 -4 -4 ------------- Run | Scr Mat Min Exi Min Mat Fac Was Fac Low Low Zio Dee Pro Fac Low Low Dat Pro Fac Gar Fac Gar Fac Was Fac Upp Turns Passed 37203 | 30 731 799 498 149 1297 2430 795 527 1070 1018 2602 2816 493 3428 2041 1713 1422 2016 1314 4217 307 2487 378 511 2033 81 Spaces Moved 16497 | 18 473 486 315 93 416 1346 274 245 608 639 1345 1361 224 1045 903 702 343 714 563 1666 174 1167 184 277 770 146 Core 202 | . . . . . . . . . . . . . . . . . . . . . . . . . 59 143 Treads 1709 | . 67 136 . . 41 . . . . . 18 740 224 27 . . 67 . . . . . . . 386 3 Legs 5368 | 11 . . . . . . . . . . . . . 1018 903 702 276 714 563 1181 . . . . . . Wheels 9218 | 7 406 350 315 93 375 1346 274 245 608 639 1327 621 . . . . . . . 485 174 1167 184 277 325 . Hover . | . . . . . . . . . . . . . . . . . . . . . . . . . . . Flight . | . . . . . . . . . . . . . . . . . . . . . . . . . . . Fastest Speed 50 | 90 90 130 80 160 160 130 140 150 140 150 130 120 200 200 210 210 170 210 186 120 150 140 140 150 50 50 Average Speed 170 | 108 104 155 151 160 235 152 156 157 150 150 156 158 200 209 210 210 207 210 186 175 150 147 149 159 167 52 Slowest Speed 300 | 120 200 200 160 160 260 250 160 160 160 160 180 200 200 210 210 210 300 210 186 186 150 150 150 160 250 160 Overloaded Moves . | . . . . . . . . . . . . . . . . . . . . . . . . . . . Propulsion Burnouts . | . . . . . . . . . . . . . . . . . . . . . . . . . . . Robots Hopped . | . . . . . . . . . . . . . . . . . . . . . . . . . . . Cave-ins Triggered . | . . . . . . . . . . . . . . . . . . . . . . . . . . . Exploration Rate (%) 55 | 2 89 83 68 17 38 35 85 9 82 79 85 78 36 30 90 71 78 81 17 94 8 98 6 93 24 27 Regions Visited 26 Branch Regions 13 Pre-discovered Areas 6 | . 2 . 1 . . . . . . . 1 . . . . 1 1 . . . . . . . . . Known Exits Taken 14 | . 1 . . . . . . 1 1 1 1 . 1 1 1 1 1 1 1 . 1 . . . 1 . Unknown Exits Taken 6 | 1 . 1 1 1 1 . . . . . . 1 . . . . . . . . . . . . . . Scrap Searched 21 | . . 2 . 1 . . . . 2 4 1 . 1 . 4 4 . 2 . . . . . . . . Spaces Dug 272 | . 3 . . . 1 8 16 . 14 29 . 20 13 24 18 . 3 64 16 2 2 23 9 . 7 . Terrain Destroyed 828 | . 4 . . . 1 18 19 6 18 31 3 31 16 92 44 50 3 136 35 46 8 101 9 7 150 . Melee 15 | . . . . . 1 5 . . . . . 5 . 1 . . 3 . . . . . . . . . Projectile 332 | . 3 . . . . 3 19 1 18 14 1 19 16 50 3 19 . 31 35 28 8 11 9 7 37 . AOE 481 | . 1 . . . . 10 . 5 . 17 2 7 . 41 41 31 . 105 . 18 . 90 . . 113 . Terrain Rammed . | . . . . . . . . . . . . . . . . . . . . . . . . . . . Walls Destroyed . | . . . . . . . . . . . . . . . . . . . . . . . . . . . Machines Disabled . | . . . . . . . . . . . . . . . . . . . . . . . . . . . Actions | -11 -10 -10 -10 -9 -8 -7 -7 -7 -7 -7 -7 -7 -6 -6 -6 -6 -6 -5 -5 -5 -5 -5 -4 -4 -4 -4 --------- Run | Scr Mat Min Exi Min Mat Fac Was Fac Low Low Zio Dee Pro Fac Low Low Dat Pro Fac Gar Fac Gar Fac Was Fac Upp Total 23699 | 23 609 522 338 93 587 1621 508 327 711 676 1600 1867 250 2192 1028 886 1071 1173 729 2813 198 1881 274 312 1261 149 Wait 4409 | . 43 9 . 1 30 65 107 19 59 16 26 202 6 1011 78 100 603 387 70 866 6 494 51 . 160 . Move 16474 | 17 472 485 314 92 415 1346 273 244 607 638 1344 1360 223 1044 902 701 342 713 562 1665 173 1166 184 276 770 146 Hop . | . . . . . . . . . . . . . . . . . . . . . . . . . . . Pick Up 420 | . 10 12 20 . 28 33 7 7 2 . 28 47 . 19 4 6 36 3 7 56 4 44 9 10 28 . Fast Attach 115 | 1 4 . 1 . 6 18 10 7 1 . 12 19 . 1 5 3 9 . 1 4 . 3 . . 9 1 Attach 159 | 1 3 . . . 9 18 8 4 1 . 11 27 3 8 2 2 6 2 3 5 . 7 3 2 34 . Detach 181 | 1 1 . . . 3 5 9 3 . . 3 24 1 25 7 6 18 9 4 26 . 22 2 3 9 . Swap 221 | 1 14 3 . . 21 16 6 10 10 6 9 4 1 7 8 18 1 25 12 8 . 10 2 1 28 . Drop 424 | . 9 7 3 . 10 60 18 6 1 . 19 37 . 13 9 8 45 5 8 59 2 42 7 4 52 . Fire 1118 | 2 50 3 . . 64 55 70 27 30 16 86 133 16 63 13 29 5 29 62 104 13 53 16 16 163 . Melee 85 | . . . . . 1 5 . . . . 62 13 . 1 . . 3 . . . . . . . . . Ram 2 | . . . . . . . . . . . . . . . . . . . . . . . . . 1 1 Kick . | . . . . . . . . . . . . . . . . . . . . . . . . . . . Crush 14 | . 3 3 . . . . . . . . . . . . . . . . . . . . . . 7 1 Escape Stasis 60 | . . . . . . . . . . . . . . . . . . . . 20 . 40 . . . . Rewire 13 | . . . . . . . . . . . . . . . . 13 . . . . . . . . . . Trap 4 | . . . . . . . . . . . . 1 . . . . 3 . . . . . . . . . Miscellaneous . | . . . . . . . . . . . . . . . . . . . . . . . . . . . Route ------- -11/Scrapyard -10/Materials (discovered 4 exits: [*Mat x3] / *Min) -10/Mines (discovered 2 exits: [*Mat] / *Exi) -10/Exiles -9/Mines -8/Materials -7/Factory (discovered 2 exits: [*Sto] / *Low) -7/Waste -7/Factory -7/Lower Caves -7/Lower Caves (discovered 2 exits: *Fac / *Zio) -7/Zion (discovered 2 exits: *Dee / [*Pro]) -7/Deep Caves -6/Proximity Caves -6/Factory (discovered 4 exits: *Fac x2 / *Low x2) -6/Lower Caves -6/Lower Caves (discovered 2 exits: *Fac / *Dat) -6/Data Miner -5/Proximity Caves -5/Factory (discovered 4 exits: *Fac / *Upp x2 / Gar) -5/Garrison (discovered 3 exits: *Fac x3) -5/Factory -5/Garrison (discovered 3 exits: *Fac x3) -4/Factory -4/Waste -4/Factory (discovered 4 exits: *Upp x2 / Ext x2) -4/Upper Caves History --------- Turn | Location | Event 1 | -11/Scrapyard | Discovered new exit (range 3) 31 | -11/Scrapyard | Entered Materials 191 | -10/Materials | Identified exit to Mines 246 | -10/Materials | Discovered new exit (range 13) 300 | -10/Materials | Build established: Mutant 372 | -10/Materials | Discovered new exit (range 10) 593 | -10/Materials | Discovered new exit (range 7) 762 | -10/Materials | Entered Mines 780 | -10/Mines | Discovered new exit (range 15) 873 | -10/Mines | Learned Materials interactive machine intel 937 | -10/Mines | Found a damaged Exp. Sensor Array with a note attached 941 | -10/Mines | Found Prototype Device 1108 | -10/Mines | A weapon hastily lodged in a ceiling crevice suddenly fell to the ground 1209 | -10/Mines | Found the Drone Emporium 1215 | -10/Mines | Found Prototype Device 1297 | -10/Mines | Met a Derelict who couldn't figure out how to use a Trap Extractor 1385 | -10/Mines | Received a Mining Laser from a helpful Derelict 1459 | -10/Mines | Assisted by bots powering up and referring to "LRC-V3" 1551 | -10/Mines | Deemed a non-threat by the Exiles lab entrance 1553 | -10/Mines | Discovered new exit (range 5) 1561 | -10/Mines | Entered Exiles 1561 | -10/Exiles | Accompanied by 4 allies 1599 | -10/Exiles | Met 8R-AWN 1623 | -10/Exiles | Met EX-HEX 1626 | -10/Exiles | Build established: Hauler-Mutant 1668 | -10/Exiles | Met EX-BIN 1774 | -10/Exiles | Met EX-DEC 1964 | -10/Exiles | Learned location of Zion (-7) 2044 | -10/Exiles | Discovered new exit (range 11) 2059 | -10/Exiles | Entered Mines 2059 | -9/Mines | Accompanied by 3 allies 2098 | -9/Mines | Discovered new exit (range 12) 2208 | -9/Mines | Entered Materials 2208 | -8/Materials | Accompanied by 3 allies 2208 | -8/Materials | Evolved 4 slots: Utility x3, Weapon x1 2209 | -8/Materials | Loaded intel: 19 interactive machine locations 2945 | -8/Materials | Discovered new exit (range 7) 3357 | -8/Materials | Build established: Hauler-Tank 3505 | -8/Materials | Entered Factory 3505 | -7/Factory | Evolved 2 slots: Utility x2 3925 | -7/Factory | Discovered new exit (range 6) 4207 | -7/Factory | Fabricated Hvy. Phase Cannon (x2) 4691 | -7/Factory | Repaired Hvy. Armor Plating? 4743 | -7/Factory | Repaired Hrd. Light Armor Plating 4899 | -7/Factory | Discovered new exit (range 9) 5916 | -7/Factory | Identified Bomb Drone Bay 5935 | -7/Factory | Sucked down chute 5935 | -7/Factory | Entered Waste 5950 | -7/Waste | EMP discharged 5950 | -7/Waste | System corruption reached 10% 5962 | -7/Waste | Spotted C-40 Crusher 6015 | -7/Waste | Destroyed C-40 Crusher 6029 | -7/Waste | Found Damper Plating 6035 | -7/Waste | Found Damper Plating 6045 | -7/Waste | Spotted C-40 Crusher 6050 | -7/Waste | EMP discharged 6052 | -7/Waste | Destroyed C-40 Crusher 6060 | -7/Waste | Spotted C-40 Crusher 6060 | -7/Waste | Spotted C-40 Crusher 6150 | -7/Waste | EMP discharged 6175 | -7/Waste | Destroyed C-40 Crusher 6198 | -7/Waste | Spotted C-40 Crusher 6250 | -7/Waste | EMP discharged 6257 | -7/Waste | Destroyed C-40 Crusher 6350 | -7/Waste | EMP discharged 6400 | -7/Waste | Destroyed C-40 Crusher 6411 | -7/Waste | Spotted C-40 Crusher 6416 | -7/Waste | Found Damper Plating 6450 | -7/Waste | EMP discharged 6519 | -7/Waste | Destroyed C-40 Crusher 6550 | -7/Waste | EMP discharged 6609 | -7/Waste | Discovered new exit (range 15) 6650 | -7/Waste | EMP discharged 6730 | -7/Waste | Entered Factory 6807 | -7/Factory | Build established: Hauler-Mutant 7163 | -7/Factory | Build established: Hauler-Tank 7239 | -7/Factory | Discovered new exit (range 4) 7253 | -7/Factory | Identified exit to Lower Caves 7257 | -7/Factory | Entered Lower Caves 7263 | -7/Lower Caves | Cld. Pulse Rifle stolen by Master Thief 7561 | -7/Lower Caves | Build established: Hauler-Skirmisher 7655 | -7/Lower Caves | Identified exit to Lower Caves 7814 | -7/Lower Caves | Attracted the attention of an 0b10 checkpoint 7859 | -7/Lower Caves | Encountered a Warlord checkpoint 8327 | -7/Lower Caves | Entered another Lower Caves area 8536 | -7/Lower Caves | Discovered new exit (range 10) 8807 | -7/Lower Caves | Build established: Hauler-Mutant 8843 | -7/Lower Caves | Attracted the attention of an 0b10 checkpoint 9302 | -7/Lower Caves | Discovered new exit (range 14) 9344 | -7/Lower Caves | Identified exit to Zion 9345 | -7/Lower Caves | Entered Zion 9411 | -7/Zion | Discovered new exit (range 14) 9447 | -7/Zion | System corruption cleaned by Quarantine Array 9749 | -7/Zion | Given A8's code to call for help 9872 | -7/Zion | Build established: Hauler-Skirmisher 9885 | -7/Zion | Learned Factory fabricator intel 9925 | -7/Zion | Found Prototype Device 9925 | -7/Zion | Identified Mobile Refinery Mk. CCLXVII 10042 | -7/Zion | Learned location of Warlord (-4) 10101 | -7/Zion | Identified exit to Deep Caves 10325 | -7/Zion | Learned location of 1 exit from Proximity Caves 10356 | -7/Zion | Learned location of 1 exit from Factory 10591 | -7/Zion | Learned location of 1 exit from Factory 10954 | -7/Zion | Build established: Hauler-Mutant 10968 | -7/Zion | Attacked by Zionites 11490 | -7/Zion | Build established: Hauler-Tank 11566 | -7/Zion | Destroyed Imprinter 11586 | -7/Zion | Extracted access codes from Imprinter's data core 11663 | -7/Zion | Opened final containment barrier to the Deep Caves 11773 | -7/Zion | P1-3CE came to Zion's defense 11791 | -7/Zion | Core integrity fell below 50% 11830 | -7/Zion | Lost 6 parts (1p2u3w) 11941 | -7/Zion | Saw the warning signs outside the Deep Caves entrance 11947 | -7/Zion | Entered Deep Caves 12088 | -7/Deep Caves | Build established: Hauler-Mutant 12219 | -7/Deep Caves | Z-Facility disabled 12430 | -7/Deep Caves | Found Prototype Protection 12430 | -7/Deep Caves | Identified Zio. Weapon Casing 12444 | -7/Deep Caves | Found Prototype Protection 12444 | -7/Deep Caves | Identified Zio. Heavy Carapace 12456 | -7/Deep Caves | Found Zio. Heavy Carapace 12460 | -7/Deep Caves | Found Zio. Heavy Carapace 12560 | -7/Deep Caves | Core integrity fell below 20% 12665 | -7/Deep Caves | Found Zio. Weapon Casing 12725 | -7/Deep Caves | Found Zio. Heavy Carapace 12747 | -7/Deep Caves | Found Zio. Weapon Casing 13078 | -7/Deep Caves | Discovered new exit (range 6) 13181 | -7/Deep Caves | Build established: Tank 13243 | -7/Deep Caves | Spotted as-13947 13268 | -7/Deep Caves | Destroyed as-13947 13282 | -7/Deep Caves | Found GOLEM Unit 13381 | -7/Deep Caves | Exposed GOLEM chamber 13385 | -7/Deep Caves | Found GOLEM Unit 13553 | -7/Deep Caves | Build established: Scavenger-Mutant 13833 | -7/Deep Caves | Found GOLEM Unit 13848 | -7/Deep Caves | Found GOLEM Unit 13852 | -7/Deep Caves | Found GOLEM Unit 13857 | -7/Deep Caves | Found GOLEM Unit 13880 | -7/Deep Caves | Build established: Hauler-Mutant 14763 | -7/Deep Caves | Entered Proximity Caves 14764 | -6/Proximity Caves | Identified exit to Factory 14774 | -6/Proximity Caves | Learned Factory trap positions 15256 | -6/Proximity Caves | Entered Factory 15256 | -6/Factory | Evolved 2 slots: Power x1, Utility x1 15257 | -6/Factory | Identified exit to Factory 15258 | -6/Factory | Loaded intel: 81 trap records 15259 | -6/Factory | Loaded intel: 6 fabricator locations 15611 | -6/Factory | Build established: Hauler-Golem 15736 | -6/Factory | Discovered new exit (range 8) 16192 | -6/Factory | Identified Exp. Sensor Array 16761 | -6/Factory | Identified exit to Lower Caves 16832 | -6/Factory | Central database locked down 17410 | -6/Factory | Fabricated Powered Armor (x2) 17459 | -6/Factory | Local fabrication network quarantined 17520 | -6/Factory | Fabricated Powered Armor (x2) 17820 | -6/Factory | Repaired Hvy. Treads 18684 | -6/Factory | Entered Lower Caves 19639 | -6/Lower Caves | Build established: Hauler-Mutant 20136 | -6/Lower Caves | Identified exit to Lower Caves 20178 | -6/Lower Caves | Build established: Hauler-Golem 20725 | -6/Lower Caves | Entered another Lower Caves area 20754 | -6/Lower Caves | Encountered a Warlord checkpoint 20791 | -6/Lower Caves | Discovered exit to Factory (range 15) 20870 | -6/Lower Caves | Build established: Hauler-Skirmisher 21873 | -6/Lower Caves | Attacked by a delusional Derelict stockpiling Unaware 22085 | -6/Lower Caves | Discovered new exit (range 5) 22436 | -6/Lower Caves | Identified exit to Data Miner 22438 | -6/Lower Caves | Entered Data Miner 22438 | -6/Data Miner | Discovered new exit (range 6) 22466 | -6/Data Miner | Identified exit to Proximity Caves 22501 | -6/Data Miner | Met Data Miner 22543 | -6/Data Miner | Learned location of Section 7 (-2) 22543 | -6/Data Miner | Acquired the access code to Warlord's prototype stash 22581 | -6/Data Miner | Received God Mode back door access code from Data Miner 23169 | -6/Data Miner | Destroyed Data Miner 23169 | -6/Data Miner | Data Conduit disabled 23221 | -6/Data Miner | Found Prototype Device 23221 | -6/Data Miner | Identified Exp. Thermal Shield 23514 | -6/Data Miner | Build established: Hauler-Golem 23748 | -6/Data Miner | Found Deep Network Scanner 23751 | -6/Data Miner | Found Quantum Router 23754 | -6/Data Miner | Found System Mapper 23757 | -6/Data Miner | Found Ghost Barrier 23860 | -6/Data Miner | Entered Proximity Caves 24312 | -5/Proximity Caves | Learned 4 Factory zone layouts 25549 | -5/Proximity Caves | Discovered exit to Factory (range 9) 25876 | -5/Proximity Caves | Entered Factory 25876 | -5/Factory | Evolved 2 slots: Propulsion x1, Utility x1 25877 | -5/Factory | Identified exit to Upper Caves 26171 | -5/Factory | Discovered exit to Upper Caves (range 9) 26337 | -5/Factory | Discovered new exit (range 14) 26387 | -5/Factory | Identified exit to Factory 27162 | -5/Factory | Identified exit to Garrison 27190 | -5/Factory | Entered Garrison 27614 | -5/Garrison | Discovered new exit (range 14) 27895 | -5/Garrison | Discovered new exit (range 15) 28051 | -5/Garrison | Discovered new exit (range 15) 28081 | -5/Garrison | Identified exit to Factory 28094 | -5/Garrison | Installed Relay Interface Framework 28302 | -5/Garrison | Triggered checkpoint 28965 | -5/Garrison | Garrison Relay disabled 29135 | -5/Garrison | Triggered checkpoint 29176 | -5/Garrison | Garrison Relay disabled 29375 | -5/Garrison | Triggered checkpoint 29429 | -5/Garrison | Garrison Relay disabled 29555 | -5/Garrison | Triggered checkpoint 29618 | -5/Garrison | Garrison Relay disabled 29962 | -5/Garrison | Build established: Hauler-Mutant 31313 | -5/Garrison | Build established: Hauler-Golem 31407 | -5/Garrison | Entered Factory 31700 | -5/Factory | Identified exit to Garrison 31714 | -5/Factory | Entered Garrison 31799 | -5/Garrison | Garrison Relay disabled 31850 | -5/Garrison | Spotted B-75 Beast 31887 | -5/Garrison | Destroyed B-75 Beast 31928 | -5/Garrison | Triggered checkpoint 32027 | -5/Garrison | Discovered exit to Factory (range 14) 32057 | -5/Garrison | Expanded RIF knowledge: Structural Interface 32114 | -5/Garrison | Triggered checkpoint 32178 | -5/Garrison | Garrison Relay disabled 32235 | -5/Garrison | Triggered checkpoint 32258 | -5/Garrison | Build established: Bothacker-Golem 32416 | -5/Garrison | Discovered exit to Factory (range 13) 32474 | -5/Garrison | Triggered checkpoint 32517 | -5/Garrison | Garrison Relay disabled 32583 | -5/Garrison | Triggered checkpoint 32630 | -5/Garrison | Discovered exit to Factory (range 9) 32792 | -5/Garrison | Triggered checkpoint 32823 | -5/Garrison | Garrison Relay disabled 34201 | -5/Garrison | Entered Factory 34201 | -4/Factory | Accompanied by 1 ally 34201 | -4/Factory | Evolved 2 slots: Utility x2 34579 | -4/Factory | Sucked down chute 34579 | -4/Factory | Entered Waste 34594 | -4/Waste | EMP discharged 34594 | -4/Waste | Spotted C-40 Crusher 34611 | -4/Waste | Destroyed C-40 Crusher 34620 | -4/Waste | 2 allies followed down the chute 34660 | -4/Waste | Spotted C-40 Crusher 34662 | -4/Waste | Destroyed C-40 Crusher 34673 | -4/Waste | Spotted C-40 Crusher 34685 | -4/Waste | Spotted C-40 Crusher 34693 | -4/Waste | Destroyed C-40 Crusher 34693 | -4/Waste | Spotted C-40 Crusher 34694 | -4/Waste | EMP discharged 34696 | -4/Waste | Allies destroyed C-40 Crusher 34706 | -4/Waste | Destroyed C-40 Crusher 34789 | -4/Waste | Found Damper Plating 34794 | -4/Waste | EMP discharged 34894 | -4/Waste | EMP discharged 34906 | -4/Waste | Spotted C-40 Crusher 34994 | -4/Waste | EMP discharged 35063 | -4/Waste | Discovered new exit (range 15) 35076 | -4/Waste | Build established: Bothacker-Tank 35090 | -4/Waste | Entered Factory 35527 | -4/Factory | Garrison activated, responded to threat 35536 | -4/Factory | Build established: Hauler-Mutant 35983 | -4/Factory | Spotted B-86 Titan 36088 | -4/Factory | Repaired Broken Adv. Heavy Siege Treads? 36092 | -4/Factory | Identified exit to Upper Caves 36092 | -4/Factory | Identified exit to Extension 36111 | -4/Factory | Repaired Powered Armor 36138 | -4/Factory | Repaired Hcp. Storage Unit 36166 | -4/Factory | Repaired Hcp. Storage Unit 36211 | -4/Factory | Repaired Powered Armor 36241 | -4/Factory | Repaired Hcp. Storage Unit 36533 | -4/Factory | Destroyed 7 combat bots 36590 | -4/Factory | First assault squad dispatched 36751 | -4/Factory | Lost 13 parts (2p2n6u3w) 37060 | -4/Factory | Core integrity fell below 50% 37085 | -4/Factory | Lost 3 parts (2u1w) 37123 | -4/Factory | Entered Upper Caves 37127 | -4/Upper Caves | Encountered a Warlord checkpoint 37176 | -4/Upper Caves | Core integrity fell below 20% 37204 | -4/Upper Caves | Destroyed by S-27 Virus with Autogun Last Messages --------------- LOCATION=UPPER CAVES GOAL=ESCAPE 37124_ GOLEM Unit beginning Asb. Alloy Leg integration. 37125_ Slammed into S-27 Virus. 37127_ PH-M0R(M): "We're here to intercept Unaware patrols. Move along before you get yourself shot." 37129_ Imp. Heavy Treads destroyed. 37131_ LK-OJO(l) destroyed. 37142_ System corrupted: Component data lost. 37143_ S-27 Virus destroyed. 37145_ HZ-0TM(g) destroyed. 37146_ Lrn. Sensor Array destroyed. 37153_ Acquired derelict log, extracted data. Data stored: Armory entrances (x1). 37176_ GOLEM Unit destroyed. 37176_ Slammed into S-27 Virus. 37183_ System corrupted: Matter fused (-7). 37194_ Acquired Lgt. Treads. 37201_ S-27 Virus destroyed. 37202_ Lgt. Treads destroyed. Map ----- +----------------------------------------------------+ | ????????????????????????????????# ## #??# | | ???????????????????????????????## ### #### | | ??????????????????????????????## ## ## | | ??????????????????????????????# ## | | ??????????????????????????????# ### | | ??????????????????????????????# ### #?## ### | | ??????????????????????????????# ##?## ##?## ##?? | | ?????????????????????????????## #???###?## #??? | | ?????????????????????????????# #??????## ##??? | | ?????????????????????????????# ##?????## ##???? | | ?????????????????????????????####??????# ##????? | | ????????????????????????????????###????# #?????? | | ???????????????????????????????## ##??## ##?????? | | ???????????????????????????????# #### ##??????? | | ???????????????????????????###### #???????? | | ???????????????????????????# #???????# | | ??????????????????????????## ######## #####?# | | ???????????????????#??????# ###?????## #?? | | ??????????????????## ?????# # ##????### #? | | ??????????????????# ????# #????"## | | ??????????????????# #???# s# ##??? "# | | ???????????????????# #### ## #??? #### | | ????????????????????# # s#X ##?# #??? | | ??????????????????### #" ## ! # # ??? | | ??????????????????? ss # # #?? | | ????????????????????????#@ =s s ## ? ?? | | ????????????????????????# * ""#???? ?? | | ????????????????????????# ###"""""##?????????? | | ????????????????????????# ####### #???????? | | ????????????????????????# # #???????? | | ????????????????????????# ######??????????? | | ????????????????????????# ## #???????????????? | | ???????????????????????# #?# #???????????????? | | ???????????????????????## ##??##???????????????? | | ????????????????????????## #????????????????????? | | ?????????????????????????## #????????????????????? | | ??????????????????????????###????????????????????? | | ?????????????????????????????????????????????????? | | ?????????????????????????????????????????????????? | | ?????????????????????????????????????????????????? | | ?????????????????????????????????????????????????? | | ?????????????????????????????????????????????????? | | ?????????????????????????????????????????????????? | | ?????????????????????????????????????????????????? | | ?????????????????????????????????????????????????? | | ?????????????????????????????????????????????????? | | ?????????????????????????????????????????????????? | | ?????????????????????????????????????????????????? | | ?????????????????????????????????????????????????? | | ?????????????????????????????????????????????????? | +----------------------------------------------------+ Best States ------------- Heat Dissipation 85 Energy Generation 45 Energy Capacity 1325 Matter Stores 300 Matter Capacity 300 Sight Range 16 Robot Scan Range 30 Terrain Scan Range 24 Terrain Scan Density 10 Jamming Range 14 Additional Mass Support 10 Armor Coverage 2400 Resistance: KI 15 Resistance: TH 15 Resistance: EX 15 Resistance: EM 90 Resistance: I 15 Resistance: S 15 Resistance: P 15 Weapon Shielding 100 Phase Shifting 8 Evasion (%) 50 Targeting Accuracy 8 Core Analysis 8 Armor Integrity Analysis 50 Recoil Reduction 3 Particle Charging 15 Salvage Targeting 4 Offensive Hacking 20 Defensive Hacking 12 Relay Coupler Types 25 Relay Coupler Value 2 Item Schematics ----------------- Powered Armor | -6/Factory | Hacked Hvy. Siege Treads | -6/Factory | Hacked Exp. Sensor Array | -6/Factory | Scanalyzed Combat Drone Bay | -6/Data Miner | Free Lgt. Regenerative Plating | -6/Data Miner | Free Exp. Flexi-carbon Leg | -6/Data Miner | Free Triangulator | -6/Data Miner | Free Exp. Terrain Scan Processor | -6/Data Miner | Free Exp. Transmission Jammer | -6/Data Miner | Free Cloaking Device | -6/Data Miner | Free Kinetic Spear | -6/Data Miner | Free Robot Schematics ------------------ S-27 Virus | -6/Data Miner | Free G-50 Soldier | -6/Data Miner | Free L-41 Fighter | -6/Data Miner | Free X-72 Disruptor | -6/Data Miner | Free H-66 Slayer | -6/Data Miner | Free I-36 Angel | -6/Data Miner | Free Fabricated ------------ Hvy. Phase Cannon | x2 | -7/Factory | Preloaded Powered Armor | x2 | -6/Factory Powered Armor | x2 | -6/Factory Alien Tech Used ----------------- None Achievements -------------- None Challenges ------------ None Game ------ Seed RocketPrecisionCompactor Manual? 0 Play Time 06:57:54 Cumulative 389.1 hours Start 2020.09.13 @ 17:37:31 End 2020.09.19 @ 16:05:12 Sessions 9 Manual Loads 0 Difficulty Rogue Special Mode None Game No. 51 Rogue 51 Adventurer 0 Explorer 0 Win Type - Total 20 Types 10/4/1/0/2/0/3/0/0 Lore% 86 Gallery% 93 Achievement% 77 Wizard Run 0 Options --------- ASCII 0 Keyboard 0 Movement Numpad Keybinds 0 Fullscreen 2 Font 18/Terminus Map View 76x50 Tactical HUD 1 Map Filters NONE Filters NONE Steam 1 RUN: 7be0506c-06cf-4d39-b4fa-99701bb7c45a